{"text_format":"1","workbook":"xlsx","n_sheets":5,"sheets":["Forklaring til skjema","Honorar","Kandidat","Bil","Bekreftelse"],"not_rendered":{"charts":0,"images":16,"macros":1,"external_links":0,"defined_names":1,"comments":3,"pivot_tables":0},"unopened":[],"bounds":{"document_bytes":16777216,"sheet_cells":100000,"rows_first":2000,"rows_last":500,"rows_between":2000,"halvings":0,"cell_chars":16384,"cell_head_chars":4096},"cells_cut":0,"cells_raw":0,"read":"whole","date_system":"1900"}

{"sheet":"Forklaring til skjema","index":0,"n_rows":54,"n_cols":2,"rows_kept":54,"cut":false,"hidden":false,"merged":[[2,0,2,1]]}
["Forklaring til skjemaet"]
["NB! Feltene som er merket med \"GUL\" skal ikke fylles ut"]
["Før bruk av skjemaet, må \"aktiver redigering\" på beskyttet visning \nog \"Aktiver innhold\" på Sikkerhetsadvarsel  må være aktivert"]
[]
[]
[]
[]
[]
[]
["Honorar"]
["Er du? ","Fyll inn om prøvenemnda er lønnsmottaker eller selvstendig næringsdrivende"]
["Personopplysning","Alle felt skal være utfylt"]
["Prøvenemnd i","Faget skal fylles ut"]
["Rolle","Skal ikke fylles ut. Feltet vises når valgalternativet fra regnark \"Kandidat\" er valg"]
["Møte/inspeksjonsdato","Dato skal fylles ut"]
[null,"Tidspunkt fra skrives med følgende format - tt:mm"]
[null,"Tidspunkt til skrives med følgende format - tt:mm"]
[null,"Antall timer per dag vil autamatisk utregnes"]
["Kurs/møte","Dato og sted skal være utfylt"]
[null,"Velg et av alternativene som passer (velg \"ingen\" hvis du har ikke vært på kurs)"]
["Observatør","Velg et av alternativene som passer (velg \"Nei\" hvis du ikke er observatøren)"]
["Dv. Utlegg:","Skriv inn faktisk beløp (husk å legge ved kvittering)"]
["Underskrift","Fyll inn dato og sted samt prøvenemndsunderskrift"]
["For Utdanningsetaten","Disse feltene vil bli fylt ut automatisk fra arkene \"Kandidat og bil\" er utfylt"]
[]
["Kandidater"]
["Rolle","Når Leder har fylt ut feltet \"Rolle\" = L (i tabell kandidat), viser dette feltet - prøvenemndsleder"]
[null,"Når Medlem har fylt ut feltet \"Rolle\" = M (i tabell kandidat), viser dette feltet - prøvenemndsmedlem"]
["Navn","Navnet til prøvenemnd som er registrert fra arket \"Honorar\""]
["Opplsyningen om kandidat","Kandidatnavn må vær utfylt"]
[null,"Prøvestasjon/Bedrift må være utfylt"]
[null,"Rolle må være utfylt. Skriv in storbokstav L for leder og/eller M for medlem"]
[null,"Dato må være utfylt"]
[null,"Start kl. må være utfylt"]
[null,"Slutt kl. må være utfylt"]
["Sett inn ny rad ","Sett inn flere rader hvis det er behov."]
["Antall","Sum av antall kandidat(er) som er nemnda har ansvar for"]
[]
["Bilgodtgjørelse"]
["Personopplysningen","Feltene er automatisk utfylt fra arket \"Honorar\""]
[null,"Bilnummer skal være utfylt"]
["Dato","Oppmøtesdato til prøve"]
["Reisemåte","Skriv inn f.eks. bil, trikk, buss, tog e.l"]
["Bedrift/prøvestasjon/kurs","Skriv inn fullstendig adresse fra og til"]
["KM stand fra","Skriv inn KM stand fra bilen"]
["KM stand til ","Skriv inn KM stand fra bilen"]
["Antall KM totalt","Skriv inn totalt antall KM fra en reiserute"]
["Antall KM utenbys","Skriv inn antall KM som er kjørt utenfor Oslo"]
["Antall passasjerer","Skriv inn antall person(er) som sitter på samme bil i prøvested"]
["Antall bom i Oslo","Skriv inn antall bompassering(er) som er kjørt i Oslo"]
["SUM bompenger utenbys","Skriv inn beløpet fro bompassering(er) utenfor Oslo"]
["SUM parkering/transp. med kvitt","Skriv inn beløp - billett/parkering. Husk kvitteringer må legges ved "]
["SUM koll. transp. uten kvitt","Skriv inn beløp - billett til trikk, buss, tog e.l."]
["Passasjers navn","Skriv inn navn til person(er) som sitter på "]

{"sheet":"Honorar","index":1,"n_rows":52,"n_cols":9,"rows_kept":52,"cut":false,"hidden":false,"merged":[[4,5,4,8],[4,0,4,4],[0,7,0,8],[49,0,49,2],[52,0,52,2],[51,0,51,2],[41,0,41,2],[42,0,42,2],[43,0,43,2],[44,0,44,2],[45,0,45,2],[47,0,47,2],[48,0,48,2],[50,0,50,2],[46,0,46,2],[6,0,6,1],[8,0,8,3],[10,0,10,1],[10,2,10,3],[6,2,6,8],[8,5,8,8],[10,4,10,8],[11,0,11,2],[12,6,12,8],[13,6,13,7],[38,7,38,8],[44,7,44,8],[30,1,30,4],[16,0,16,4],[16,5,16,6],[16,7,16,8],[35,0,35,5],[39,0,39,2],[40,0,40,2],[38,0,38,2],[13,0,13,5],[32,6,32,8],[18,0,18,8]]}
[null,null,null,null,null,null,null,"Rev. 07.01.2015"]
[]
[]
[]
["Honorarskjema for prøvenemnd    -"]
["Personnummer",null,"Navn",null,null,null,"(Alle endringer skal merkes med farge)"]
[]
["Adresse",null,null,null,"Postnr","Poststed"]
[]
["Bankkonto",null,"Mobil",null,"E-postadresse"]
[]
["Er du (velg et av alternativene):"]
["Ansatt i firma/bedrift (bedriftnavn)",null,null,null,null,null,"Velg Ja hvis virksomheten sender faktura "]
[null,null,null,null,null,null,"Bedrift/virksomhet\nsender faktura"]
[null,null,null,null,null,null,null,null,"Nei"]
["Prøvenemnd i (fagnavn)",null,null,null,null,"Leder",null,"Medlem"]
[null,null,null,null,null,{"$f":"Kandidat!A10","v":"-"},null,{"$f":"Kandidat!A11","v":"-"}]
[]
["Møte/inspeksjonsdato (tidsformat tt:mm) - (Ref. av tapt arb.fortj. utregnes iht. innsendt lønnslipp/ligningsattest)\n"]
["Dato"]
["Tid fra (tt:mm)"]
["Tid til (tt:mm)"]
["Antall timer",{"$f":"IF(OR(B21=\"\",B22=\"\"),\"\",B22-B21)","v":""},{"$f":"IF(OR(C21=\"\",C22=\"\"),\"\",C22-C21)","v":""},"","","","","",""]
[]
["Dato"]
["Tidspunkt fra:"]
["Tidspunkt til:",null,null,null,null,null,null,null,"SUM timer"]
["Antall timer",{"$f":"IF(OR(B26=\"\",B27=\"\"),\"\",B27-B26)","v":""},{"$f":"IF(OR(C26=\"\",C27=\"\"),\"\",C27-C26)","v":""},"","","","","",{"$f":"SUM(B23:I23,B28:H28)","v":0}]
[]
["Kurs/møte hos Utdanningsetaten"]
["Dato og sted",null,null,null,null,"-"]
[]
["Observatør",null,null,null,"Div. utlegg \nkr.",null,"(porto, div. utgifter med kvittering)"]
[null,null,"Nei"]
["Prøvenemnds underskrift - dato og sted",null,null,"(må fylles ut)",null,null,"Godkjent av Utdanningsetaten"]
[]
[]
["For Utdanningsetaten"]
["Tekst",null,null,"Lønnsart","Antall","Sats","SUM","Kontrollert av FAG"]
["Honorar - Prøvenemnsleder",null,null,2307,{"$f":"Kandidat!E13","v":0},1810,{"$f":"E40*F40","v":0}]
["Honorar - Prøvenemndsmedlem",null,null,2306,{"$f":"Kandidat!E14","v":0},1354,{"$f":"E41*F41","v":0}]
["Honorar - Kurs /møte",null,null,2308,null,null,{"$f":"IF(F31=\"Halv dag\",300,(IF(F31=\"Hel dag\",600,\"\")))","v":""}]
["Honorar - Observatør",null,null,2308,null,null,{"$f":"IF(C34 =\"Ja\",600,\"\")","v":""}]
["Kjøregodtgjørelse",null,null,4200,{"$f":"Bil!F12+Bil!G12","v":0},4.0999999999999996,{"$f":"E44*F44","v":0}]
["Oslotillegg",null,null,4203,{"$f":"Bil!F12","v":0},0.2,0,"Kontrollert av EFT"]
["Passasjertillegg",null,null,4210,{"$f":"Bil!N12","v":0},1,{"$f":"E46*F46","v":0}]
["Diverse utgifter m/ kvittering",null,null,4300,null,null,{"$f":"F33","v":0}]
["Utlegg med kvittering",null,null,4300,null,null,{"$f":"Bil!K12","v":0}]
["Utlegg uten kvittering",null,null,4305,null,null,{"$f":"Bil!L12","v":0}]
["Bompenger i Oslo",null,null,4221,{"$f":"Bil!I12","v":0},31,0]
["Bompenger utenbys",null,null,4221,null,null,{"$f":"Bil!J12","v":0}]
[{"$f":"IF(F5 = \"lønnsmottaker\",\"Ref. av tapt arb.fort. lønnsmottaker\",IF(F5 = \"selvstendig næringsdrivende\",\"Ref. av tapt arb.fort. selv. næring\",\"\"))","v":""},null,null,{"$f":"IF(F5 = \"lønnsmottaker\",2136,IF(F5 = \"selvstendig næringsdrivende\",2135,\"\"))","v":""},{"$f":"IF(I15=\"Ja\",\"\",IF(D52=\"\",\"\",I28*24))","v":""}]

{"sheet":"Kandidat","index":2,"n_rows":23,"n_cols":6,"rows_kept":23,"cut":false,"hidden":false,"merged":[[9,1,10,1],[0,3,0,4],[12,1,12,2],[13,1,13,2]]}
[null,null,null,{"$f":"Honorar!H1","v":"Rev. 07.01.2015"}]
[]
[]
[]
[]
["Kandidater"]
["Lærling(er) som har avlagt fag-/svenneprøve"]
[]
["Rolle","Navn"]
[{"$f":"IF(E13>0,\"Prøvenemndsleder\",\"-\")","v":"-"},{"$f":"Honorar!C7","v":0}]
[{"$f":"IF(E14>0,\"Prøvenemndsmedlem\",\"-\")","v":"-"}]
[]
[null,"Rolle må skrive inn: L = Leder",null,"Leder",{"$f":"COUNTIF(Tabell2[Test],\"L\")","v":0}]
[null,"M = Medlem",null,"Medlem",{"$f":"COUNTIF(Tabell2[Test],\"M\")","v":0}]
["Kandidatens navn","Prøvestasjon/bedrift","Rolle","Prøvestart dato","Prøveslutt dato","Test"]
[null,null,null,null,null,{"$f":"IF(Tabell2[[#This Row],[Kandidatens navn]]=\"\",\"\",Tabell2[Rolle])","v":""}]
[null,null,null,null,null,{"$f":"IF(Tabell2[[#This Row],[Kandidatens navn]]=\"\",\"\",Tabell2[Rolle])","v":""}]
[null,null,null,null,null,{"$f":"IF(Tabell2[[#This Row],[Kandidatens navn]]=\"\",\"\",Tabell2[Rolle])","v":""}]
[null,null,null,null,null,{"$f":"IF(Tabell2[[#This Row],[Kandidatens navn]]=\"\",\"\",Tabell2[Rolle])","v":""}]
[null,null,null,null,null,{"$f":"IF(Tabell2[[#This Row],[Kandidatens navn]]=\"\",\"\",Tabell2[Rolle])","v":""}]
[null,null,null,null,null,{"$f":"IF(Tabell2[[#This Row],[Kandidatens navn]]=\"\",\"\",Tabell2[Rolle])","v":""}]
[null,null,null,null,null,{"$f":"IF(Tabell2[[#This Row],[Kandidatens navn]]=\"\",\"\",Tabell2[Rolle])","v":""}]
[null,null,null,null,null,{"$f":"IF(Tabell2[[#This Row],[Kandidatens navn]]=\"\",\"\",Tabell2[Rolle])","v":""}]

{"sheet":"Bil","index":3,"n_rows":20,"n_cols":14,"rows_kept":20,"cut":false,"hidden":false,"merged":[[0,12,0,13],[7,11,7,12],[11,3,11,4],[7,0,7,1],[7,2,7,10],[9,0,9,5],[9,7,9,10]]}
[null,null,null,null,null,null,null,null,null,null,null,null,{"$f":"Honorar!H1","v":"Rev. 07.01.2015"}]
[]
[]
[]
[]
["Kjøregodtgjørelse"]
["Personnummer",null,"Navn",null,null,null,null,null,null,null,null,"Bilnummer"]
[{"$f":"Honorar!A7","v":0},null,{"$f":"Honorar!C7","v":0}]
["Adresse",null,null,null,null,null,"Postnr","Poststed"]
[{"$f":"Honorar!A9","v":0},null,null,null,null,null,{"$f":"Honorar!E9","v":0},{"$f":"Honorar!F9","v":0}]
[]
[null,null,null,"SUM",null,{"$f":"SUM(Tabell1[Antall\nKM\ni Oslo])","v":0},{"$f":"SUM(Tabell1[Antall\nKM\nutenbys ])","v":0},{"$f":"SUM(Tabell1[Antall\npassa-\nsjerer\n])","v":0},{"$f":"SUM(Tabell1[Antall\nbom\ni Oslo])","v":0},{"$f":"SUM(Tabell1[Sum\nbom-\npenger utenbys])","v":0},{"$f":"SUM(Tabell1[Sum\nparkering/\nkoll.transp\nm/kvitt])","v":0},{"$f":"SUM(Tabell1[Sum\nkoll.trans\nu/kvitt])","v":0},null,{"$f":"SUM(Tabell1[Total\npass])","v":0}]
["Dato","Reise-\nmåte","Bedrift/Prøvestasjon/Kurssted\n(nøyaktig adresse fra og til)","KM\nstand\nfra","KM\nstand\ntil","Antall\nKM\ni Oslo","Antall\nKM\nutenbys ","Antall\npassa-\nsjerer\n","Antall\nbom\ni Oslo","Sum\nbom-\npenger utenbys","Sum\nparkering/\nkoll.transp\nm/kvitt","Sum\nkoll.trans\nu/kvitt","Passasjers navn","Total\npass"]
[null,null,null,null,null,null,null,null,null,null,null,null,null,{"$f":"(Tabell1[[#This Row],[Antall\nKM\ni Oslo]]+Tabell1[[#This Row],[Antall\nKM\nutenbys ]])*Tabell1[[#This Row],[Antall\npassa-\nsjerer\n]]","v":0}]
[null,null,null,null,null,null,null,null,null,null,null,null,null,{"$f":"(Tabell1[[#This Row],[Antall\nKM\ni Oslo]]+Tabell1[[#This Row],[Antall\nKM\nutenbys ]])*Tabell1[[#This Row],[Antall\npassa-\nsjerer\n]]","v":0}]
[null,null,null,null,null,null,null,null,null,null,null,null,null,{"$f":"(Tabell1[[#This Row],[Antall\nKM\ni Oslo]]+Tabell1[[#This Row],[Antall\nKM\nutenbys ]])*Tabell1[[#This Row],[Antall\npassa-\nsjerer\n]]","v":0}]
[null,null,null,null,null,null,null,null,null,null,null,null,null,{"$f":"(Tabell1[[#This Row],[Antall\nKM\ni Oslo]]+Tabell1[[#This Row],[Antall\nKM\nutenbys ]])*Tabell1[[#This Row],[Antall\npassa-\nsjerer\n]]","v":0}]
[null,null,null,null,null,null,null,null,null,null,null,null,null,{"$f":"(Tabell1[[#This Row],[Antall\nKM\ni Oslo]]+Tabell1[[#This Row],[Antall\nKM\nutenbys ]])*Tabell1[[#This Row],[Antall\npassa-\nsjerer\n]]","v":0}]
[null,null,null,null,null,null,null,null,null,null,null,null,null,{"$f":"(Tabell1[[#This Row],[Antall\nKM\ni Oslo]]+Tabell1[[#This Row],[Antall\nKM\nutenbys ]])*Tabell1[[#This Row],[Antall\npassa-\nsjerer\n]]","v":0}]
[null,null,null,null,null,null,null,null,null,null,null,null,null,{"$f":"(Tabell1[[#This Row],[Antall\nKM\ni Oslo]]+Tabell1[[#This Row],[Antall\nKM\nutenbys ]])*Tabell1[[#This Row],[Antall\npassa-\nsjerer\n]]","v":0}]

{"sheet":"Bekreftelse","index":4,"n_rows":29,"n_cols":9,"rows_kept":29,"cut":false,"hidden":false,"merged":[[14,0,14,8],[26,2,26,8],[26,0,26,1],[4,0,4,4],[7,0,7,1],[7,2,7,8],[9,0,9,3],[9,5,9,8],[12,0,12,4]]}
[]
[]
[]
[]
["Bekreftelse på tapt arbeidsfortjeneste"]
[]
["Personnummer",null,"Navn"]
[{"$f":"Honorar!A7","v":0},null,{"$f":"Honorar!C7","v":0}]
["Adresse",null,null,null,"Postnr","Poststed"]
[{"$f":"Honorar!A9","v":0},null,null,null,{"$f":"Honorar!E9","v":0},{"$f":"Honorar!F9","v":0}]
[]
["Prøvenemnd i (fagnavn)"]
[{"$f":"Honorar!A17","v":0}]
[]
["Møte/inspeksjonsdato\n"]
["Dato",{"$f":"Honorar!B20","v":"00:00:00"},{"$f":"Honorar!C20","v":"00:00:00"},{"$f":"Honorar!D20","v":"00:00:00"},{"$f":"Honorar!E20","v":"00:00:00"},{"$f":"Honorar!F20","v":"00:00:00"},{"$f":"Honorar!G20","v":"00:00:00"},{"$f":"Honorar!H20","v":"00:00:00"},{"$f":"Honorar!I20","v":"00:00:00"}]
["Antall timer",{"$f":"Honorar!B23","v":""},{"$f":"Honorar!C23","v":""},{"$f":"Honorar!D23","v":""},{"$f":"Honorar!E23","v":""},{"$f":"Honorar!F23","v":""},{"$f":"Honorar!G23","v":""},{"$f":"Honorar!H23","v":""},{"$f":"Honorar!I23","v":""}]
[]
["Dato",{"$f":"Honorar!B25","v":"00:00:00"},{"$f":"Honorar!C25","v":"00:00:00"},{"$f":"Honorar!D25","v":"00:00:00"},{"$f":"Honorar!E25","v":"00:00:00"},{"$f":"Honorar!F25","v":"00:00:00"},{"$f":"Honorar!G25","v":"00:00:00"},{"$f":"Honorar!H25","v":"00:00:00"},"SUM timer"]
["Antall timer",{"$f":"Honorar!B28","v":""},{"$f":"Honorar!C28","v":""},{"$f":"Honorar!D28","v":""},{"$f":"Honorar!E28","v":""},{"$f":"Honorar!F28","v":""},{"$f":"Honorar!G28","v":""},{"$f":"Honorar!H28","v":""},{"$f":"SUM(B17:I17,B20:H20)","v":0}]
[]
["Det bekreftes at ovennevnte prøvenemndsmedlem er trukket",null,null,null,null,null,{"$f":"I20","v":0},"antall timer i lønn"]
["for å avholde fag-/svenneprøve"]
[]
[]
["Dato/sted",null,"Arbeidsgivers/styreleders/daglig leders underskrift og stempel"]
[]
[]
["Tapt arbeidsfortjeneste vil bli refundert fra Oslo kommune i.h.t. innsendt lønnsslipp"]